bitfinex/quotes_BTCUSD_20250123
["timestamp","ask_amount","ask_price","bid_price","bid_amount"]
[1737669391423,0.0007936,103090.0,103080.0,0.1264]
[1737669391636,0.0007936,103090.0,103080.0,0.32075929]
[1737669392783,0.0007936,103090.0,103080.0,0.47075929]
[1737669393357,0.00029883,103100.0,103090.0,0.247102]
[1737669393555,0.00029883,103100.0,103090.0,0.47304929]
[1737669393556,0.00044723,103100.0,103090.0,0.47304929]
[1737669393762,0.00044723,103100.0,103090.0,0.47294929]
[1737669393964,0.00044723,103100.0,103090.0,0.47304929]
[1737669394166,0.04116645,103110.0,103100.0,0.374793]
[1737669394410,0.04116645,103110.0,103100.0,0.47214029]
[1737669395180,6e-05,103110.0,103100.0,0.47214029]
[1737669395402,0.00106,103110.0,103100.0,0.47214029]
[1737669395594,0.00206,103110.0,103100.0,0.47214029]
[1737669396020,0.00106,103110.0,103100.0,0.47214029]
[1737669396227,0.00206,103110.0,103100.0,0.47214029]
[1737669396764,0.00106,103110.0,103100.0,0.47204029]
[1737669396966,0.00097151,103110.0,103100.0,0.47204029]
[1737669397629,0.1123928,103130.0,103100.0,0.37514729]
[1737669397823,0.1123928,103130.0,103120.0,0.15]
[1737669398033,0.0154258,103130.0,103120.0,0.368574]
[1737669398238,0.0154258,103130.0,103120.0,0.2716]
[1737669398437,0.1123898,103130.0,103120.0,0.2716]
[1737669398737,0.0154258,103130.0,103120.0,0.2716]
[1737669398941,0.0154258,103130.0,103120.0,0.46592129]
[1737669399151,0.0154258,103130.0,103120.0,0.46602129]
[1737669399902,0.0154258,103130.0,103120.0,0.46592129]
[1737669400138,0.0154258,103130.0,103120.0,0.46602129]
[1737669400545,0.08701022,103170.0,103160.0,0.269936]
[1737669400750,0.08715859,103170.0,103160.0,0.54498329]
[1737669400947,0.0992763,103170.0,103160.0,0.56508329]
[1737669401149,0.12811369,103170.0,103160.0,0.54498329]
[1737669401484,0.12811369,103170.0,103160.0,0.47208329]
[1737669401610,1.369e-05,103170.0,103160.0,0.54498329]
[1737669401835,1.369e-05,103170.0,103160.0,0.56508329]
[1737669402036,1.369e-05,103170.0,103160.0,0.52208329]
[1737669402277,0.00029862,103190.0,103180.0,0.097018]
[1737669402491,0.00029862,103190.0,103180.0,0.19436529]
[1737669402724,0.00029862,103190.0,103180.0,0.19426529]
[1737669402910,0.00029862,103190.0,103180.0,0.19436529]
[1737669403122,0.00029862,103190.0,103170.0,0.537781]
[1737669403332,0.00029862,103190.0,103180.0,0.096918]
[1737669404860,0.00029862,103190.0,103180.0,0.31836529]
[1737669405109,0.00029862,103190.0,103180.0,0.46836529]
[1737669405525,0.00029862,103190.0,103180.0,0.1965]
[1737669405734,0.02019862,103190.0,103180.0,0.15]
[1737669405934,0.00029862,103190.0,103180.0,0.15]
[1737669406887,0.00029862,103190.0,103180.0,0.34426529]
[1737669407975,0.00029862,103190.0,103180.0,0.34436529]
[1737669408344,0.00029862,103190.0,103180.0,0.47236529]
[1737669408960,0.00029862,103190.0,103180.0,0.47426529]
[1737669409136,0.00029862,103190.0,103180.0,0.47436529]
[1737669410047,0.00029862,103190.0,103180.0,0.49379159]
[1737669410214,0.00029862,103190.0,103180.0,0.49479159]
[1737669410440,0.00029862,103190.0,103180.0,0.49979159]
[1737669412361,0.00029862,103190.0,103180.0,0.50965647]
[1737669413645,0.00029862,103190.0,103180.0,0.49969159]
[1737669413846,0.00029862,103190.0,103180.0,0.49979159]
[1737669416104,0.00029862,103190.0,103180.0,0.49879159]
[1737669416323,1e-08,103190.0,103180.0,0.59279159]
[1737669416780,1e-08,103190.0,103180.0,0.58579159]
[1737669416998,1e-08,103190.0,103180.0,0.59079159]
[1737669417210,1e-08,103190.0,103180.0,0.83579159]
[1737669417648,1e-08,103190.0,103180.0,0.84379159]
[1737669417864,1e-08,103190.0,103180.0,0.75579159]
[1737669418073,1e-08,103190.0,103180.0,0.60579159]
[1737669418281,1e-08,103190.0,103180.0,0.50579159]
[1737669418511,1e-08,103190.0,103180.0,0.52879159]
[1737669418929,1e-08,103190.0,103180.0,0.57879159]
[1737669419123,1e-08,103190.0,103180.0,0.57379159]
[1737669419305,1e-08,103190.0,103180.0,0.83079159]
[1737669419503,1e-08,103190.0,103180.0,0.85079159]
[1737669420518,1e-08,103190.0,103180.0,0.83079159]
[1737669420924,1e-08,103190.0,103180.0,0.85079159]
[1737669421138,1e-08,103190.0,103180.0,0.78079159]
[1737669421336,1e-08,103190.0,103180.0,0.83079159]
[1737669421597,1e-08,103190.0,103180.0,0.85079159]
[1737669421912,1e-08,103190.0,103180.0,0.83079159]
[1737669422352,1e-08,103190.0,103180.0,0.58079159]
[1737669423434,1e-08,103190.0,103180.0,0.50769159]
[1737669423640,1e-08,103190.0,103180.0,0.50779159]
[1737669424260,0.1455736,103220.0,103210.0,0.15]
[1737669424472,0.14606809,103220.0,103210.0,0.15]
[1737669424684,0.11741669,103220.0,103210.0,0.15]
[1737669426507,0.09751669,103220.0,103210.0,0.152]
[1737669426709,0.11741669,103220.0,103210.0,0.152]
[1737669427593,0.09751669,103220.0,103210.0,0.152]
[1737669427798,0.11741669,103220.0,103210.0,0.15]
[1737669428856,0.11731669,103220.0,103210.0,0.15]
[1737669429789,0.21466398,103220.0,103210.0,0.15]
[1737669430280,0.19476398,103220.0,103210.0,0.15]
[1737669431200,0.096889,103210.0,103200.0,0.29970137]
[1737669431457,0.45328629,103210.0,103200.0,0.29970137]
[1737669431902,0.32508629,103210.0,103200.0,0.09112779]
[1737669432153,0.205158,103190.0,103180.0,0.0002982]
[1737669432385,0.32550529,103190.0,103180.0,0.0002982]
[1737669433462,0.23715529,103190.0,103180.0,0.0002982]
[1737669433605,0.19425529,103190.0,103180.0,0.0002982]
[1737669433814,0.19525529,103190.0,103180.0,0.0002982]
[1737669434022,0.24525529,103190.0,103180.0,0.0002982]
[1737669434446,0.19525529,103190.0,103180.0,0.0002982]
[1737669434661,0.21515529,103190.0,103180.0,0.0002982]
[1737669434850,0.32650529,103190.0,103180.0,0.0002982]
[1737669435226,0.33620002,103190.0,103180.0,0.0002982]
[1737669435681,0.27485002,103190.0,103180.0,0.0002982]
[1737669436070,0.20495002,103190.0,103180.0,0.0002982]
[1737669436679,0.22485002,103190.0,103180.0,0.0002982]
[1737669437258,0.20395002,103190.0,103180.0,0.0002982]
[1737669437462,0.504504,103180.0,103160.0,0.22321296]
[1737669437871,0.096929,103170.0,103150.0,0.290819]
[1737669438070,0.310683,103170.0,103150.0,0.290819]
[1737669438591,0.310683,103170.0,103150.0,0.48471]
[1737669438802,0.116829,103170.0,103160.0,0.096936]
[1737669439006,0.0199,103170.0,103160.0,0.096936]
[1737669439364,0.01806381,103160.0,103150.0,0.29096537]
[1737669440397,0.310683,103170.0,103150.0,0.48484837]
[1737669440575,0.60185529,103180.0,103160.0,0.290807]
[1737669440775,0.41739173,103190.0,103170.0,0.096927]
[1737669440985,0.32047473,103190.0,103170.0,0.290779]
[1737669441161,0.10674973,103190.0,103180.0,0.246918]
[1737669441360,0.000142,103190.0,103180.0,0.246918]
[1737669442239,0.01818503,103190.0,103180.0,0.246918]
[1737669442653,0.01918503,103190.0,103180.0,0.246918]
[1737669443087,0.01818503,103190.0,103180.0,0.246918]
[1737669443320,0.01918503,103190.0,103180.0,0.246918]
[1737669443529,0.01918503,103190.0,103180.0,0.34426529]
[1737669443740,0.01918503,103190.0,103180.0,0.47106529]
[1737669444167,0.01918503,103190.0,103180.0,0.47116529]
[1737669444860,0.001142,103190.0,103180.0,0.47116529]
[1737669445273,0.000142,103190.0,103180.0,0.47116529]
[1737669445483,0.000142,103190.0,103180.0,0.52116529]
[1737669445711,0.000142,103190.0,103180.0,0.52216529]
[1737669445925,0.01804303,103200.0,103190.0,0.373808]
[1737669446141,4.22e-05,103220.0,103210.0,0.2769]
[1737669446359,4.22e-05,103220.0,103210.0,0.47113629]
[1737669446879,4.22e-05,103220.0,103210.0,0.52113629]
[1737669447094,0.00053669,103220.0,103210.0,0.52113629]
[1737669447924,0.0084698,103230.0,103220.0,0.42468]
[1737669448182,0.00861802,103230.0,103220.0,0.52202729]
[1737669448368,0.00014822,103230.0,103220.0,0.52202729]
[1737669449156,0.00014822,103230.0,103220.0,0.77202729]
[1737669449515,0.00014822,103230.0,103220.0,0.72302729]
[1737669449734,0.00014822,103230.0,103220.0,0.77302729]
[1737669450162,0.00014822,103230.0,103220.0,0.77802729]
[1737669450381,0.0002022,103240.0,103230.0,0.0931]
[1737669450594,0.085778,103270.0,103260.0,0.374642]
[1737669450777,0.08592614,103270.0,103260.0,0.47198929]
[1737669451695,0.08592614,103270.0,103260.0,0.54498929]
[1737669451896,0.00014814,103270.0,103260.0,0.54498929]
[1737669452110,0.00014814,103270.0,103260.0,0.47198929]
[1737669452551,0.00014814,103270.0,103260.0,0.52198929]
[1737669452759,0.00014814,103270.0,103260.0,0.52898929]
[1737669452970,0.00014814,103270.0,103260.0,0.56098929]
[1737669453167,0.00014814,103270.0,103260.0,0.72898929]
[1737669453662,0.00014814,103270.0,103260.0,0.73098929]
[1737669454294,0.00014814,103270.0,103260.0,0.47198929]
[1737669454517,0.00014814,103270.0,103260.0,0.33161705]
[1737669454817,0.00014814,103270.0,103260.0,0.48171705]
[1737669455116,0.00014814,103270.0,103260.0,0.48761705]
[1737669455324,0.00014814,103270.0,103260.0,0.47788929]
[1737669455527,0.00014814,103270.0,103260.0,0.48698929]
[1737669455764,0.00014814,103270.0,103260.0,0.48098929]
[1737669455889,0.00014814,103270.0,103260.0,0.47398929]
[1737669456105,0.00014814,103270.0,103260.0,0.48198929]
[1737669456943,0.00014814,103270.0,103260.0,0.47998929]
[1737669457389,0.00014814,103270.0,103260.0,0.52198929]
[1737669458446,0.00014814,103270.0,103260.0,0.52798929]
[1737669458808,0.00014814,103270.0,103260.0,0.53698929]
[1737669459020,0.00014814,103270.0,103260.0,0.53098929]
[1737669459177,0.00014814,103270.0,103260.0,0.78098929]
[1737669459383,0.00014814,103270.0,103260.0,0.78998929]
[1737669459755,0.00014814,103270.0,103260.0,0.79698929]
[1737669460217,0.00014814,103270.0,103260.0,0.81498929]
[1737669460421,0.00014814,103270.0,103260.0,0.72998929]
[1737669461361,0.00014814,103270.0,103260.0,0.47998929]
[1737669461564,0.00014814,103270.0,103260.0,0.48198929]
[1737669462721,0.00014814,103270.0,103260.0,0.53198929]
[1737669462924,0.00029034,103270.0,103260.0,0.53198929]
[1737669463407,0.00029034,103270.0,103260.0,0.78198929]
[1737669465554,0.00029034,103270.0,103260.0,0.80498929]
[1737669467511,0.00029034,103270.0,103260.0,0.58198929]
[1737669467737,0.00029034,103270.0,103260.0,0.58188929]
[1737669467938,0.00029034,103270.0,103260.0,0.60418929]
[1737669468357,0.00029034,103270.0,103260.0,0.35418929]
[1737669468574,0.00029034,103270.0,103260.0,0.20418929]
[1737669468986,0.00029034,103270.0,103260.0,0.35418929]
[1737669469342,0.00029034,103270.0,103260.0,0.256842]
[1737669469930,0.00029034,103270.0,103260.0,0.43198929]
[1737669470145,0.00029034,103270.0,103260.0,0.68198929]
[1737669471351,0.00029034,103270.0,103260.0,0.43198929]
[1737669473242,0.00029034,103270.0,103260.0,0.47848929]
[1737669474286,0.00029034,103270.0,103260.0,0.47838929]
[1737669474505,0.00029034,103270.0,103260.0,0.47848929]
[1737669474705,0.00029034,103270.0,103260.0,0.47838929]
[1737669474908,0.00029034,103270.0,103260.0,0.47848929]
[1737669475188,0.00029034,103270.0,103260.0,0.47838929]
[1737669475394,0.00029034,103270.0,103260.0,0.47848929]
[1737669478958,0.00029034,103270.0,103260.0,0.47838929]
[1737669479526,0.00029034,103270.0,103260.0,0.35428929]
[1737669479959,0.00029034,103270.0,103260.0,0.106842]
[1737669480173,0.11702334,103270.0,103260.0,0.01]
[1737669480585,0.11702334,103270.0,103260.0,0.16]
[1737669481243,0.02019034,103270.0,103260.0,0.158]
[1737669481419,0.02019034,103270.0,103260.0,0.254842]
[1737669482622,0.02019034,103270.0,103260.0,0.158]
[1737669482839,0.116752,103250.0,103240.0,0.00029862]
[1737669483039,0.21819929,103250.0,103240.0,0.00029862]
[1737669483248,0.116771,103230.0,103220.0,0.00029862]
[1737669483451,0.26721829,103230.0,103220.0,0.00029862]
[1737669483647,0.407374,103240.0,103220.0,0.00029862]
[1737669483814,0.096871,103230.0,103220.0,0.15029862]
[1737669484013,0.116771,103230.0,103220.0,0.15029862]
[1737669484221,0.19491829,103230.0,103220.0,0.00029862]
[1737669484421,0.09689,103210.0,103180.0,0.47542083]
[1737669484625,0.21367,103220.0,103190.0,0.34474678]
[1737669484899,0.09689,103210.0,103190.0,0.34474678]
[1737669485180,0.09689,103210.0,103190.0,0.09784178]
[1737669485387,0.290672,103210.0,103190.0,0.00049449]
[1737669485611,0.310572,103210.0,103190.0,0.15049449]
[1737669485822,0.407472,103210.0,103190.0,0.00049449]
[1737669486030,0.21724629,103200.0,103190.0,0.00049449]
[1737669486280,0.22133607,103200.0,103190.0,0.00049449]
[1737669486493,0.24199101,103200.0,103190.0,0.00949449]
[1737669486697,0.22209101,103200.0,103190.0,0.00949449]
[1737669487246,0.24350273,103200.0,103190.0,0.00149449]
[1737669487445,0.22209101,103200.0,103190.0,0.00149449]
[1737669487643,0.24350273,103200.0,103190.0,0.00649449]
[1737669488568,0.23865801,103200.0,103190.0,0.00649449]
[1737669488787,0.23865801,103200.0,103190.0,0.00149449]
[1737669488788,0.3867053,103200.0,103190.0,0.00149449]
[1737669488989,0.28935801,103200.0,103190.0,0.00149449]
[1737669489192,0.23935801,103200.0,103190.0,0.00249449]
[1737669489933,0.23935801,103200.0,103190.0,0.00049449]
[1737669490106,0.28935801,103200.0,103190.0,0.00049449]
[1737669490313,0.29135801,103200.0,103190.0,0.00049449]
[1737669490890,0.23935801,103200.0,103190.0,0.00049449]
[1737669491088,0.24135801,103200.0,103190.0,0.00049449]
[1737669491756,0.24161427,103200.0,103190.0,0.00049449]
[1737669492175,0.29161427,103200.0,103190.0,0.00049449]
[1737669492507,0.26661427,103200.0,103190.0,0.00049449]
[1737669492697,0.26761427,103200.0,103190.0,0.00049449]
[1737669493134,0.22709933,103200.0,103190.0,0.00049449]
[1737669494661,0.20473135,103200.0,103190.0,0.00049449]
[1737669494865,0.22757768,103200.0,103190.0,0.00049449]
[1737669495216,0.27757768,103200.0,103190.0,0.00049449]
[1737669496140,0.20473135,103200.0,103190.0,0.00049449]
[1737669496613,0.20473135,103200.0,103190.0,0.01049449]
[1737669496804,0.22463135,103200.0,103190.0,0.01049449]
[1737669498001,0.22463135,103200.0,103190.0,0.01079311]
[1737669498199,0.22463135,103200.0,103190.0,0.03379311]
[1737669499271,0.22363135,103200.0,103190.0,0.03379311]
[1737669499673,0.26342135,103200.0,103190.0,0.03379311]
[1737669500077,0.26242135,103200.0,103190.0,0.03379311]
[1737669500281,0.32067135,103200.0,103190.0,0.03379311]
[1737669500428,0.32167135,103200.0,103190.0,0.03379311]
[1737669501482,0.54672107,103200.0,103190.0,0.01079311]
[1737669501689,0.45397135,103200.0,103190.0,0.01079311]
[1737669502637,0.40467135,103200.0,103190.0,0.01079311]
[1737669502845,0.42751768,103200.0,103190.0,0.01079311]
[1737669503411,0.47751768,103200.0,103190.0,0.01079311]
[1737669503613,0.42751768,103200.0,103190.0,0.01079311]
[1737669504177,0.46488161,103200.0,103190.0,0.01079311]
[1737669505578,0.116827,103170.0,103160.0,0.173]
[1737669505938,0.21417429,103170.0,103160.0,0.173]
[1737669506101,0.11724729,103170.0,103160.0,0.173]
[1737669506310,0.11724729,103170.0,103160.0,0.269936]
[1737669506840,0.09734729,103170.0,103160.0,0.275936]
[1737669507945,0.21417429,103170.0,103160.0,0.179]
[1737669508981,0.21417429,103170.0,103160.0,0.17929862]
[1737669509153,0.21417429,103170.0,103160.0,0.17429862]
[1737669509375,0.21417429,103170.0,103160.0,0.17629862]
[1737669509517,0.21417429,103170.0,103160.0,0.17529862]
[1737669509722,0.21417429,103170.0,103160.0,0.00229862]
[1737669509723,0.27537062,103170.0,103160.0,0.00229862]
[1737669510347,0.29527062,103170.0,103160.0,0.00229862]
[1737669511163,0.27242429,103170.0,103160.0,0.00029862]
[1737669511543,0.29627062,103170.0,103160.0,0.00029862]
[1737669511759,0.27342429,103170.0,103160.0,0.00029862]
[1737669512593,0.27342429,103170.0,103160.0,0.16593462]
[1737669512812,0.27342429,103170.0,103160.0,0.31593462]
[1737669513069,0.27342429,103170.0,103160.0,0.21899862]
[1737669515615,0.27342429,103170.0,103160.0,0.31593462]
[1737669515827,0.001,103170.0,103160.0,0.31593462]
[1737669516061,0.001,103170.0,103160.0,0.49528191]
[1737669517135,0.30056671,103190.0,103170.0,0.657612]
[1737669517333,0.49439571,103190.0,103170.0,0.657612]
[1737669518282,0.096918,103180.0,103170.0,0.463762]
[1737669518565,0.669893,103190.0,103170.0,0.463768]
[1737669518760,0.19443278,103200.0,103190.0,0.269908]
[1737669518967,0.25299007,103200.0,103190.0,0.317708]
[1737669519418,0.25299007,103200.0,103190.0,0.294708]
[1737669520095,0.00049378,103200.0,103190.0,0.2729042]
[1737669520645,0.00049378,103200.0,103190.0,0.2959042]
[1737669520879,0.00149378,103200.0,103190.0,0.3780042]
[1737669521256,0.00149378,103200.0,103190.0,0.47545149]
[1737669522066,0.00149378,103200.0,103190.0,0.3780042]
[1737669522241,0.09839278,103200.0,103190.0,0.1299]
[1737669522453,0.09839278,103200.0,103190.0,0.1319]
[1737669522804,0.21564007,103200.0,103190.0,0.0478]
[1737669523002,0.21464007,103200.0,103190.0,0.005]
[1737669523178,0.21564007,103200.0,103190.0,0.005]
[1737669523746,0.21464007,103200.0,103190.0,0.005]
[1737669524890,0.40844807,103200.0,103180.0,0.246917]
[1737669525048,0.40844807,103200.0,103190.0,0.002]
[1737669525971,0.38854807,103200.0,103190.0,0.002]
[1737669526403,0.19474007,103200.0,103190.0,0.002]
[1737669527779,0.09739278,103200.0,103190.0,0.002]
[1737669528788,0.10721146,103200.0,103190.0,0.002]
[1737669530227,0.16546146,103200.0,103190.0,0.002]
[1737669530638,0.26280875,103200.0,103190.0,0.002]
[1737669530841,0.3394823,103200.0,103190.0,0.002]
[1737669531123,0.26280875,103200.0,103190.0,0.002]
[1737669531787,0.28270875,103200.0,103190.0,0.002]
[1737669531990,0.348984,103190.0,103170.0,0.224426]
[1737669532196,0.15559729,103190.0,103180.0,0.096918]
[1737669532376,0.00049378,103200.0,103190.0,0.326508]
[1737669532777,0.00149378,103200.0,103190.0,0.326508]
[1737669533144,0.00049378,103200.0,103190.0,0.326508]
[1737669533414,0.00049378,103200.0,103190.0,0.32680683]
[1737669533675,0.00063608,103200.0,103190.0,0.22989883]
[1737669533883,0.00063608,103200.0,103190.0,0.49315412]
[1737669534082,0.00063608,103200.0,103190.0,0.37270683]
[1737669534793,0.00163608,103200.0,103190.0,0.37270683]
[1737669535154,0.00163608,103200.0,103190.0,0.39780683]
[1737669535353,0.00063608,103200.0,103190.0,0.49515412]
[1737669536983,0.00063608,103200.0,103190.0,0.39780683]
[1737669537276,0.00063608,103200.0,103190.0,0.39770683]
[1737669537686,0.00063608,103200.0,103190.0,0.49515412]
[1737669538844,0.00063608,103200.0,103190.0,0.49315412]
[1737669539014,0.00063608,103200.0,103190.0,0.49405412]
[1737669539236,0.00063608,103200.0,103190.0,0.49915412]
[1737669539437,0.00063608,103200.0,103190.0,0.49815412]
[1737669540318,0.00063608,103200.0,103190.0,0.49305412]
[1737669540673,0.00063608,103200.0,103190.0,0.49515412]
[1737669542516,0.00063608,103200.0,103190.0,0.49615412]
[1737669542920,0.00063608,103200.0,103190.0,0.37570683]
[1737669543152,0.00063608,103200.0,103190.0,0.12879883]
[1737669543290,0.09753508,103200.0,103190.0,0.12879883]
[1737669543493,0.00063608,103200.0,103190.0,0.27679883]
[1737669543721,0.00063608,103200.0,103190.0,0.28179883]
[1737669544147,0.00063608,103200.0,103190.0,0.37270683]
[1737669544346,0.00063608,103200.0,103190.0,0.37470683]
[1737669545371,0.00063608,103200.0,103190.0,0.27779883]
[1737669545552,0.09753508,103200.0,103190.0,0.27779883]
[1737669547173,0.00063608,103200.0,103190.0,0.27779883]
[1737669547861,0.10238006,103200.0,103190.0,0.27779883]
[1737669548438,0.00548106,103200.0,103190.0,0.27779883]
[1737669549434,0.00063608,103200.0,103190.0,0.27779883]
[1737669550429,0.00063608,103200.0,103190.0,0.39780683]
[1737669550636,0.0001422,103220.0,103210.0,0.345789]
[1737669550873,0.0001422,103220.0,103210.0,0.48883629]
[1737669551753,0.0001422,103220.0,103210.0,0.391389]
[1737669552161,0.0001422,103220.0,103210.0,0.393489]
[1737669552950,0.0001422,103220.0,103210.0,0.393389]
[1737669553540,0.0001422,103220.0,103210.0,0.392389]
[1737669553740,0.0001422,103220.0,103210.0,0.374389]
[1737669553941,0.0001422,103220.0,103210.0,0.369389]
[1737669554365,0.0001422,103220.0,103210.0,0.374389]
[1737669554564,0.0001422,103220.0,103210.0,0.369389]
[1737669554764,0.0001422,103220.0,103210.0,0.368389]
[1737669554976,0.0001422,103220.0,103210.0,0.374389]
[1737669555155,0.0001422,103220.0,103210.0,0.2775]
[1737669555605,0.0970222,103220.0,103210.0,0.0517]
[1737669556400,0.0970222,103220.0,103210.0,0.0507]
[1737669556577,0.0001422,103220.0,103210.0,0.0507]
[1737669556777,0.0001422,103220.0,103210.0,0.222089]
[1737669556988,0.0001422,103220.0,103210.0,0.224089]
[1737669557269,0.0001422,103220.0,103210.0,0.223089]
[1737669557450,0.0001422,103220.0,103210.0,0.32053629]
[1737669557792,0.0001422,103220.0,103210.0,0.34153629]
[1737669558029,0.0001422,103220.0,103210.0,0.49353629]
[1737669558562,0.0001422,103220.0,103210.0,0.49153629]
[1737669559752,0.0001422,103220.0,103210.0,0.49653629]
[1737669559927,0.0001422,103220.0,103210.0,0.49753629]
[1737669560128,0.0001422,103220.0,103210.0,0.400089]
[1737669560477,0.0001422,103220.0,103210.0,0.409089]
[1737669560682,0.0001422,103220.0,103210.0,0.395089]
[1737669560822,0.0001422,103220.0,103210.0,0.395189]
[1737669561029,0.0001422,103220.0,103210.0,0.399189]
[1737669561234,0.0001422,103220.0,103210.0,0.396189]
[1737669561635,0.0001422,103220.0,103210.0,0.405189]
[1737669561913,0.0001422,103220.0,103210.0,0.405089]
[1737669562085,0.0001422,103220.0,103210.0,0.382089]
[1737669562496,0.0001422,103220.0,103210.0,0.405089]
[1737669562705,0.0001422,103220.0,103210.0,0.403189]
[1737669562904,0.0001422,103220.0,103210.0,0.394189]
[1737669563081,0.0001422,103220.0,103210.0,0.400189]
[1737669563302,0.0001422,103220.0,103210.0,0.395189]
[1737669563637,0.0001422,103220.0,103210.0,0.394189]
[1737669563831,0.0001422,103220.0,103210.0,0.405189]
[1737669564042,0.0001422,103220.0,103210.0,0.396189]
[1737669564247,0.0001422,103220.0,103210.0,0.401189]
[1737669564460,0.0001422,103220.0,103210.0,0.399189]
[1737669564677,0.0001422,103220.0,103210.0,0.395189]
[1737669565879,0.0001422,103220.0,103210.0,0.380189]
[1737669566242,0.0001422,103220.0,103210.0,0.382189]
[1737669566448,0.0001422,103220.0,103210.0,0.50253629]
[1737669568198,0.0001422,103220.0,103210.0,0.75253629]
[1737669568411,0.0001422,103220.0,103210.0,0.80253629]
[1737669568769,0.4545792,103270.0,103250.0,0.369535]
[1737669568973,0.74560249,103270.0,103250.0,0.563228]
[1737669569163,0.038765,103260.0,103250.0,0.519535]
[1737669569541,0.75517382,103270.0,103250.0,0.713227]
[1737669569877,0.096842,103260.0,103250.0,0.519535]
[1737669570085,0.096861,103240.0,103230.0,0.0794]
[1737669570293,0.096871,103230.0,103210.0,0.37005]
[1737669570506,0.41925129,103230.0,103200.0,0.0466423]
[1737669570723,0.096889,103210.0,103200.0,0.0466423]
[1737669570941,0.27238629,103210.0,103200.0,0.0001423]
[1737669571141,0.40468629,103210.0,103200.0,0.0001423]
[1737669571342,0.10825,103200.0,103190.0,0.00025884]
[1737669571558,0.40469629,103200.0,103190.0,0.00025884]
[1737669571759,0.42459629,103200.0,103190.0,0.00040706]
[1737669572004,0.25249629,103200.0,103190.0,0.00040706]
[1737669572411,0.27239629,103200.0,103190.0,0.00040706]
[1737669572794,0.22549729,103200.0,103180.0,0.08668229]
[1737669572971,0.096908,103190.0,103180.0,0.08717607]
[1737669575199,0.19425529,103190.0,103180.0,0.08717607]
[1737669575403,0.21415529,103190.0,103180.0,0.00049378]
[1737669576369,0.21415529,103190.0,103180.0,0.02349378]
[1737669576699,0.22402435,103190.0,103180.0,0.02349378]
[1737669579711,0.20412435,103190.0,103180.0,0.02349378]
[1737669579929,0.22402435,103190.0,103180.0,0.02349378]
[1737669580759,0.40972164,103190.0,103180.0,0.00049378]
[1737669580992,0.166827,103170.0,103160.0,0.00029862]
[1737669581192,0.26417429,103170.0,103160.0,0.00029862]
[1737669582773,0.26417429,103170.0,103160.0,0.02329862]
[1737669582948,0.36637429,103170.0,103160.0,0.02329862]
[1737669583125,0.36637429,103170.0,103160.0,0.02529862]
[1737669583326,0.36637429,103170.0,103160.0,0.02629862]
[1737669584540,0.36637429,103170.0,103160.0,0.02529862]
[1737669585194,0.42462429,103170.0,103160.0,0.02529862]
[1737669585629,0.44403949,103170.0,103160.0,0.02529862]
[1737669586426,0.52148678,103170.0,103160.0,0.00229862]
[1737669586772,0.42413949,103170.0,103160.0,0.00229862]
[1737669588589,0.155186,103160.0,103150.0,0.00025884]
[1737669588746,0.50473329,103160.0,103150.0,0.00040721]
[1737669588956,0.50613329,103160.0,103150.0,0.00040721]
[1737669589157,0.60348058,103160.0,103150.0,0.00040721]
[1737669589580,0.27243329,103160.0,103150.0,0.00040721]
[1737669589776,0.32243329,103160.0,103150.0,0.00040721]
[1737669589978,0.27243329,103160.0,103150.0,0.00040721]
[1737669591653,0.27343329,103160.0,103150.0,0.00040721]
[1737669591961,0.35573329,103160.0,103150.0,0.00040721]
[1737669592767,0.45308058,103160.0,103150.0,0.00040721]
[1737669592962,0.0699,103150.0,103130.0,0.00029883]
[1737669593159,0.32245229,103140.0,103130.0,0.00029883]
[1737669593968,0.27245229,103140.0,103130.0,0.00029883]
[1737669595056,0.25255229,103140.0,103130.0,0.00029883]
[1737669595268,0.25255229,103140.0,103130.0,0.25239883]
[1737669595469,0.25255229,103140.0,103130.0,0.25439883]
[1737669597893,0.155205,103140.0,103130.0,0.25439883]
[1737669598280,0.32823479,103140.0,103130.0,0.08139883]
[1737669598654,0.32245229,103140.0,103130.0,0.00229883]
[1737669598977,0.3319526,103140.0,103130.0,0.00229883]
[1737669599945,0.2819526,103140.0,103130.0,0.00229883]
[1737669600465,0.2819526,103140.0,103130.0,0.10179883]
[1737669601230,0.06775031,103140.0,103130.0,0.10179883]
[1737669601440,0.05825,103150.0,103130.0,0.39576283]
[1737669601638,0.05825,103150.0,103140.0,0.269955]
[1737669601823,0.16477735,103150.0,103140.0,0.173]
[1737669602020,0.00958135,103150.0,103140.0,0.2541]
[1737669602221,0.29096904,103160.0,103140.0,0.2541]
[1737669602527,0.05925,103150.0,103140.0,0.2541]
[1737669602746,0.06025,103150.0,103140.0,0.351055]
[1737669602949,0.05925,103150.0,103140.0,0.351055]
[1737669603126,0.05925,103150.0,103140.0,0.2561]
[1737669603673,0.05925,103150.0,103140.0,0.353055]
[1737669603882,0.05825,103150.0,103140.0,0.2561]
[1737669604457,0.155196,103150.0,103140.0,0.2561]
[1737669605062,0.25254329,103150.0,103140.0,0.2561]
[1737669605289,0.3588457,103150.0,103140.0,0.002]
[1737669605628,0.155224,103120.0,103110.0,0.04739883]
[1737669606003,0.25257129,103120.0,103110.0,0.04739883]
[1737669606357,0.27247129,103120.0,103110.0,0.04739883]
[1737669606886,0.27247129,103120.0,103110.0,0.05239883]
[1737669608542,0.27247129,103120.0,103110.0,0.07539883]
[1737669608780,0.0699,103110.0,103090.0,0.0001423]
[1737669608968,0.27249029,103100.0,103090.0,0.0001423]
[1737669609166,0.29533662,103100.0,103090.0,0.0001423]
[1737669609373,0.37763662,103100.0,103090.0,0.0001423]
[1737669609588,0.47638391,103100.0,103090.0,1e-08]
[1737669610023,0.60353758,103100.0,103090.0,1e-08]
[1737669610245,0.20825,103090.0,103080.0,2e-08]
[1737669610460,0.20825,103090.0,103070.0,0.00010222]
[1737669610461,0.257462,103080.0,103070.0,0.00010222]
[1737669610667,0.40762059,103080.0,103070.0,0.0005972]
[1737669610882,0.58092426,103080.0,103070.0,0.0005972]
[1737669611294,0.257471,103070.0,103060.0,0.00029862]
[1737669611527,0.37812196,103070.0,103060.0,0.00029862]
[1737669611940,0.47507222,103070.0,103060.0,0.00029862]
[1737669612360,0.62507222,103070.0,103060.0,0.00029862]
[1737669612614,0.64515619,103070.0,103060.0,0.00029862]
[1737669612785,0.64815619,103070.0,103060.0,0.00029862]
[1737669613101,0.54595619,103070.0,103060.0,0.00029862]
[1737669613234,0.44900593,103070.0,103060.0,0.00029862]
[1737669615298,0.39075593,103070.0,103060.0,0.00029862]
[1737669616678,0.09703,103060.0,103050.0,0.00025884]
[1737669616881,0.21768096,103060.0,103050.0,0.00025884]
[1737669617940,0.19937729,103060.0,103050.0,0.00025884]
[1737669618161,0.10203,103060.0,103050.0,0.14935884]